[Event "*** Titled Tuesday Blitz"]
[Site "Chess.com"]
[Date "2018.11.06"]
[Round "1"]
[White "FearNoEvil12"]
[Black "Alex_Terzi"]
[Result "0-1"]
[WhiteElo "1943"]
[BlackElo "2480"]
[TimeControl "180+2"]
[EndTime "13:07:46 PST"]
[Termination "Alex_Terzi won by resignation"]

1. e4 {[%clk 0:03:01.9]} 1... e6 {[%clk 0:02:58.1]} 2. d4 {[%clk 0:03:01.8]}
2... d5 {[%clk 0:02:56.9]} 3. Nc3 {[%clk 0:03:02]} 3... Bb4 {[%clk 0:02:53.6]}
4. Qd3 {[%clk 0:03:02.9]} 4... Nc6 {[%clk 0:02:46.9]} 5. e5 {[%clk 0:03:02]}
5... f6 {[%clk 0:02:38.6]} 6. a3 {[%clk 0:03:01.5]} 6... Bxc3+ {[%clk
0:02:39.1]} 7. Qxc3 {[%clk 0:02:58.7]} 7... fxe5 {[%clk 0:02:40.3]} 8. dxe5
{[%clk 0:02:58.9]} 8... Nge7 {[%clk 0:02:24.3]} 9. Nf3 {[%clk 0:02:49.3]} 9...
d4 {[%clk 0:02:22.6]} 10. Qb3 {[%clk 0:02:43.8]} 10... O-O {[%clk 0:02:19.8]}
11. Bg5 {[%clk 0:02:42.4]} 11... h6 {[%clk 0:02:13.9]} 12. Bh4 {[%clk
0:02:42.5]} 12... g5 {[%clk 0:02:09.8]} 13. Bg3 {[%clk 0:02:42.5]} 13... Nf5
{[%clk 0:02:09.3]} 14. O-O-O {[%clk 0:02:41.5]} 14... Qe7 {[%clk 0:01:59.6]} 15.
Bd3 {[%clk 0:02:37.3]} 15... Bd7 {[%clk 0:01:48.8]} 16. Bxf5 {[%clk 0:02:35.8]}
16... Rxf5 {[%clk 0:01:49.4]} 17. Nxd4 {[%clk 0:02:36.5]} 17... Nxd4 {[%clk
0:01:50.4]} 18. Rxd4 {[%clk 0:02:37.3]} 18... Bc6 {[%clk 0:01:51.5]} 19. h4
{[%clk 0:02:36.4]} 19... Bxg2 {[%clk 0:01:50.1]} 20. Rh2 {[%clk 0:02:34.4]}
20... Bd5 {[%clk 0:01:49.9]} 21. Qd3 {[%clk 0:02:24.4]} 21... Rf3 {[%clk
0:01:46.5]} 22. Qe2 {[%clk 0:02:21.9]} 22... Raf8 {[%clk 0:01:45.5]} 23. Kb1
{[%clk 0:02:17]} 23... Qc5 {[%clk 0:01:34.1]} 24. Qd2 {[%clk 0:02:08.9]} 24...
Rxg3 {[%clk 0:01:23.4]} 25. b4 {[%clk 0:01:13.7]} 25... Rg1+ {[%clk 0:01:22.3]}
26. Kb2 {[%clk 0:01:13.7]} 26... Qc6 {[%clk 0:01:16]} 27. hxg5 {[%clk
0:01:12.2]} 27... hxg5 {[%clk 0:01:14.5]} 28. Qd3 {[%clk 0:01:08.9]} 28... Qd7
{[%clk 0:00:48.3]} 29. c4 {[%clk 0:01:08.9]} 29... c5 {[%clk 0:00:25]} 30. Rxd5
{[%clk 0:00:25.7]} 30... exd5 {[%clk 0:00:25]} 31. cxd5 {[%clk 0:00:26.2]} 31...
cxb4 {[%clk 0:00:25]} 32. e6 {[%clk 0:00:25.9]} 32... Qg7+ {[%clk 0:00:25.7]}
33. Kb3 {[%clk 0:00:21.1]} 33... Qc3+ {[%clk 0:00:24.6]} 34. Ka4 {[%clk
0:00:22.6]} 34... Qxd3 {[%clk 0:00:25.3]} 0-1

[Event "*** Titled Tuesday Blitz"]
[Site "Chess.com"]
[Date "2018.11.06"]
[Round "1"]
[White "WanderingPuppet"]
[Black "Bryakin_Mikhail"]
[Result "0-1"]
[WhiteElo "2327"]
[BlackElo "2685"]
[TimeControl "180+2"]
[EndTime "13:07:53 PST"]
[Termination "Bryakin_Mikhail won by resignation"]

1. e4 {[%clk 0:03:01.7]} 1... c6 {[%clk 0:02:56]} 2. Nc3 {[%clk 0:03:02.2]} 2...
d5 {[%clk 0:02:56.8]} 3. Nf3 {[%clk 0:03:03.1]} 3... Nf6 {[%clk 0:02:54.6]} 4.
e5 {[%clk 0:03:02.4]} 4... Ne4 {[%clk 0:02:54.1]} 5. d4 {[%clk 0:03:03.2]} 5...
Nxc3 {[%clk 0:02:53.6]} 6. bxc3 {[%clk 0:03:03.9]} 6... Bg4 {[%clk 0:02:51.7]}
7. Bd3 {[%clk 0:03:03.6]} 7... e6 {[%clk 0:02:51.5]} 8. O-O {[%clk 0:03:03.4]}
8... Nd7 {[%clk 0:02:49.3]} 9. Rb1 {[%clk 0:03:04]} 9... b5 {[%clk 0:02:49]} 10.
h3 {[%clk 0:03:03.5]} 10... Bh5 {[%clk 0:02:48.5]} 11. g4 {[%clk 0:02:32]} 11...
Bg6 {[%clk 0:02:47.3]} 12. Kg2 {[%clk 0:02:20.6]} 12... Be7 {[%clk 0:02:33.3]}
13. Rh1 {[%clk 0:02:12]} 13... a6 {[%clk 0:02:29.1]} 14. h4 {[%clk 0:02:10]}
14... c5 {[%clk 0:02:24.1]} 15. Bxg6 {[%clk 0:02:02]} 15... hxg6 {[%clk
0:02:21]} 16. h5 {[%clk 0:02:03]} 16... gxh5 {[%clk 0:02:17.4]} 17. Rxh5 {[%clk
0:01:54.4]} 17... Rxh5 {[%clk 0:02:17.7]} 18. gxh5 {[%clk 0:01:55.2]} 18... Qa5
{[%clk 0:02:14.4]} 19. Bg5 {[%clk 0:01:15.5]} 19... Qxc3 {[%clk 0:01:54.8]} 20.
Bxe7 {[%clk 0:01:13.1]} 20... Kxe7 {[%clk 0:01:55]} 21. Qc1 {[%clk 0:01:06.6]}
21... f6 {[%clk 0:01:45.3]} 22. Qf4 {[%clk 0:00:57.7]} 22... Qxc2 {[%clk
0:01:37.3]} 23. Re1 {[%clk 0:00:49.4]} 23... Rh8 {[%clk 0:01:28.2]} 24. exf6+
{[%clk 0:00:44.7]} 24... gxf6 {[%clk 0:01:26.6]} 25. dxc5 {[%clk 0:00:25.9]}
25... Rg8+ {[%clk 0:01:02.6]} 26. Kf1 {[%clk 0:00:14.9]} 26... Qc4+ {[%clk
0:01:01.5]} 27. Qxc4 {[%clk 0:00:15.2]} 27... bxc4 {[%clk 0:00:59.1]} 28. c6
{[%clk 0:00:09.4]} 28... Nc5 {[%clk 0:01:00.6]} 29. Rb1 {[%clk 0:00:05.8]} 29...
Kd6 {[%clk 0:01:00.7]} 30. c7 {[%clk 0:00:04.1]} 30... Kxc7 {[%clk 0:01:00.6]}
31. Nd4 {[%clk 0:00:05.3]} 31... Rh8 {[%clk 0:01:01.4]} 32. Re1 {[%clk
0:00:04.9]} 32... e5 {[%clk 0:01:01.4]} 33. Nf5 {[%clk 0:00:05.8]} 33... Rxh5
{[%clk 0:01:02.5]} 34. Ng3 {[%clk 0:00:07.6]} 34... Rh4 {[%clk 0:01:03.1]} 35.
Kg2 {[%clk 0:00:09.5]} 35... Ne4 {[%clk 0:01:01.3]} 36. Rb1 {[%clk 0:00:11.4]}
36... Nxg3 {[%clk 0:01:01.9]} 37. fxg3 {[%clk 0:00:13]} 37... Rd4 {[%clk
0:01:03.2]} 38. Rf1 {[%clk 0:00:14.2]} 38... Rd2+ {[%clk 0:01:04.2]} 39. Kh3
{[%clk 0:00:16.1]} 39... c3 {[%clk 0:01:05]} 40. Rxf6 {[%clk 0:00:18]} 40... c2
{[%clk 0:01:06.1]} 0-1

[Event "*** Titled Tuesday Blitz"]
[Site "Chess.com"]
[Date "2018.11.06"]
[Round "1"]
[White "aquaticpineapples"]
[Black "sergeikim"]
[Result "0-1"]
[WhiteElo "2014"]
[BlackElo "2492"]
[TimeControl "180+2"]
[EndTime "13:07:59 PST"]
[Termination "sergeikim won by resignation"]

1. d4 {[%clk 0:03:01.9]} 1... Nf6 {[%clk 0:02:59.9]} 2. Nf3 {[%clk 0:03:02.9]}
2... g6 {[%clk 0:02:59.2]} 3. Nbd2 {[%clk 0:03:03.8]} 3... Bg7 {[%clk
0:02:59.7]} 4. e4 {[%clk 0:03:04.9]} 4... d6 {[%clk 0:03:00.2]} 5. Bd3 {[%clk
0:03:06.1]} 5... O-O {[%clk 0:03:00.7]} 6. O-O {[%clk 0:03:07.2]} 6... c6 {[%clk
0:03:01.2]} 7. a4 {[%clk 0:03:05.7]} 7... a5 {[%clk 0:03:02]} 8. b3 {[%clk
0:03:04.4]} 8... Na6 {[%clk 0:03:02]} 9. Bb2 {[%clk 0:03:02.7]} 9... Qc7 {[%clk
0:03:01.3]} 10. Re1 {[%clk 0:03:01.2]} 10... Nb4 {[%clk 0:02:59.2]} 11. Bf1
{[%clk 0:02:58.6]} 11... Nd7 {[%clk 0:02:58]} 12. c3 {[%clk 0:02:57.4]} 12...
Na6 {[%clk 0:02:57.9]} 13. Qc2 {[%clk 0:02:51]} 13... e5 {[%clk 0:02:57.7]} 14.
Rac1 {[%clk 0:02:49.9]} 14... Re8 {[%clk 0:02:50.5]} 15. Nc4 {[%clk 0:02:39.9]}
15... exd4 {[%clk 0:02:42.3]} 16. cxd4 {[%clk 0:02:38.1]} 16... Nb4 {[%clk
0:02:42.2]} 17. Qb1 {[%clk 0:02:37.3]} 17... Nb6 {[%clk 0:02:38.4]} 18. e5
{[%clk 0:02:27.1]} 18... Nxc4 {[%clk 0:02:35.7]} 19. Bxc4 {[%clk 0:02:25.3]}
19... Bf5 {[%clk 0:02:30]} 20. exd6 {[%clk 0:02:07.2]} 20... Qxd6 {[%clk
0:02:26.4]} 21. Qa1 {[%clk 0:02:04.6]} 21... Rxe1+ {[%clk 0:02:22.1]} 22. Nxe1
{[%clk 0:02:05.2]} 22... Re8 {[%clk 0:02:11.5]} 23. Bc3 {[%clk 0:01:56.5]} 23...
h5 {[%clk 0:01:55.1]} 24. Qb2 {[%clk 0:01:48.9]} 24... Qf4 {[%clk 0:01:42.3]}
25. Nf3 {[%clk 0:01:38.1]} 25... Bg4 {[%clk 0:01:28.8]} 26. Ne5 {[%clk
0:01:32.7]} 26... Be6 {[%clk 0:01:25.3]} 27. Bxe6 {[%clk 0:01:30.6]} 27... Rxe6
{[%clk 0:01:24.9]} 28. g3 {[%clk 0:01:16.5]} 28... Qf5 {[%clk 0:01:21.8]} 29.
Qd2 {[%clk 0:01:08.2]} 29... c5 {[%clk 0:01:01.3]} 30. Nc4 {[%clk 0:00:56.6]}
30... Nd3 {[%clk 0:00:49.9]} 31. Rd1 {[%clk 0:00:51.7]} 31... cxd4 {[%clk
0:00:35.8]} 32. Bxa5 {[%clk 0:00:52.1]} 32... Nc5 {[%clk 0:00:33]} 33. Rb1
{[%clk 0:00:46.2]} 33... Qxb1+ {[%clk 0:00:29.8]} 34. Kg2 {[%clk 0:00:46.6]}
34... Qxb3 {[%clk 0:00:23.4]} 35. Bb6 {[%clk 0:00:45.1]} 35... Qxc4 {[%clk
0:00:22.6]} 36. a5 {[%clk 0:00:45.5]} 36... Qd5+ {[%clk 0:00:21.9]} 37. Kg1
{[%clk 0:00:46.2]} 37... d3 {[%clk 0:00:22.8]} 38. Bc7 {[%clk 0:00:46.5]} 38...
Re2 {[%clk 0:00:22.9]} 39. Qf4 {[%clk 0:00:46]} 39... d2 {[%clk 0:00:22.9]} 0-1

[Event "*** Titled Tuesday Blitz"]
[Site "Chess.com"]
[Date "2018.11.06"]
[Round "1"]
[White "mc4chess"]
[Black "Shant_Sargsyan"]
[Result "1-0"]
[WhiteElo "2480"]
[BlackElo "2890"]
[TimeControl "180+2"]
[EndTime "13:08:00 PST"]
[Termination "mc4chess won by checkmate"]

1. Nf3 {[%clk 0:02:57]} 1... d5 {[%clk 0:02:55.6]} 2. c4 {[%clk 0:02:57.6]} 2...
e6 {[%clk 0:02:53.2]} 3. g3 {[%clk 0:02:57.7]} 3... dxc4 {[%clk 0:02:49.6]} 4.
Bg2 {[%clk 0:02:58.6]} 4... a6 {[%clk 0:02:47.4]} 5. a4 {[%clk 0:02:57.3]} 5...
Nc6 {[%clk 0:02:47.1]} 6. O-O {[%clk 0:02:53.7]} 6... Nf6 {[%clk 0:02:46.8]} 7.
Na3 {[%clk 0:02:54.6]} 7... Bxa3 {[%clk 0:02:43.6]} 8. Rxa3 {[%clk 0:02:56.5]}
8... O-O {[%clk 0:02:44.6]} 9. d3 {[%clk 0:02:38.2]} 9... cxd3 {[%clk
0:02:41.2]} 10. Rxd3 {[%clk 0:02:40.1]} 10... Qe7 {[%clk 0:02:42]} 11. Bf4
{[%clk 0:02:34.7]} 11... e5 {[%clk 0:02:41.6]} 12. Bg5 {[%clk 0:02:33.7]} 12...
e4 {[%clk 0:02:33.7]} 13. Re3 {[%clk 0:02:34.4]} 13... exf3 {[%clk 0:02:32.6]}
14. Rxe7 {[%clk 0:02:29.6]} 14... fxg2 {[%clk 0:02:33.3]} 15. Kxg2 {[%clk
0:02:30.8]} 15... Nxe7 {[%clk 0:02:32.7]} 16. Bxf6 {[%clk 0:02:31.2]} 16... gxf6
{[%clk 0:02:34.6]} 17. Qd4 {[%clk 0:02:32.1]} 17... f5 {[%clk 0:02:29.9]} 18.
Qf6 {[%clk 0:02:24.3]} 18... Ng6 {[%clk 0:02:16.6]} 19. h4 {[%clk 0:02:24.7]}
19... h5 {[%clk 0:02:13.9]} 20. Qg5 {[%clk 0:02:23.1]} 20... Kg7 {[%clk
0:02:03.6]} 21. Qxh5 {[%clk 0:02:22.3]} 21... Be6 {[%clk 0:01:52.1]} 22. Qg5
{[%clk 0:02:19.3]} 22... f6 {[%clk 0:01:52.7]} 23. Qc1 {[%clk 0:02:13.4]} 23...
Bd5+ {[%clk 0:01:52.9]} 24. Kg1 {[%clk 0:02:12.1]} 24... c6 {[%clk 0:01:48.1]}
25. Rd1 {[%clk 0:02:12.4]} 25... Rad8 {[%clk 0:01:44.2]} 26. f3 {[%clk 0:01:58]}
26... Rh8 {[%clk 0:01:43.9]} 27. Kf2 {[%clk 0:01:47.1]} 27... f4 {[%clk
0:01:38.9]} 28. gxf4 {[%clk 0:01:45.5]} 28... Rxh4 {[%clk 0:00:53.8]} 29. e4
{[%clk 0:01:44.7]} 29... Rdh8 {[%clk 0:00:54.4]} 30. Rg1 {[%clk 0:01:34.2]}
30... Rh2+ {[%clk 0:00:54.2]} 31. Ke3 {[%clk 0:01:34.7]} 31... Bxe4 {[%clk
0:00:42.3]} 32. fxe4 {[%clk 0:01:31.8]} 32... R2h3+ {[%clk 0:00:35.9]} 33. Kd4
{[%clk 0:01:23.8]} 33... Rd8+ {[%clk 0:00:33.3]} 34. Kc5 {[%clk 0:01:23.1]}
34... Kh7 {[%clk 0:00:31.9]} 35. Qf1 {[%clk 0:01:09.6]} 35... Rb3 {[%clk
0:00:26.6]} 36. Qg2 {[%clk 0:00:53.2]} 36... b6+ {[%clk 0:00:20.5]} 37. Kc4
{[%clk 0:00:51.2]} 37... Rg8 {[%clk 0:00:02.8]} 38. Rh1+ {[%clk 0:00:47.7]}
38... Nh4 {[%clk 0:00:02.1]} 39. Rxh4# {[%clk 0:00:48]} 1-0

[Event "*** Titled Tuesday Blitz"]
[Site "Chess.com"]
[Date "2018.11.06"]
[Round "1"]
[White "Chopper1905"]
[Black "hypert"]
[Result "0-1"]
[WhiteElo "2667"]
[BlackElo "2352"]
[TimeControl "180+2"]
[EndTime "13:08:00 PST"]
[Termination "hypert won by resignation"]

1. d4 {[%clk 0:03:00.7]} 1... Nf6 {[%clk 0:03:00.3]} 2. c4 {[%clk 0:03:01.7]}
2... e6 {[%clk 0:03:01.6]} 3. Nc3 {[%clk 0:03:01.1]} 3... Bb4 {[%clk 0:03:02.3]}
4. Qc2 {[%clk 0:02:59.1]} 4... O-O {[%clk 0:03:02]} 5. a3 {[%clk 0:02:59.8]}
5... Bxc3+ {[%clk 0:02:56.5]} 6. Qxc3 {[%clk 0:03:01.7]} 6... d5 {[%clk
0:02:52.7]} 7. Bg5 {[%clk 0:03:02.8]} 7... b6 {[%clk 0:02:51.3]} 8. cxd5 {[%clk
0:02:50.1]} 8... exd5 {[%clk 0:02:48.4]} 9. Rc1 {[%clk 0:02:38.1]} 9... c6
{[%clk 0:02:48.3]} 10. e3 {[%clk 0:02:30.9]} 10... Bb7 {[%clk 0:02:35.4]} 11.
Bd3 {[%clk 0:02:14]} 11... Nbd7 {[%clk 0:02:36.1]} 12. Nf3 {[%clk 0:01:42.5]}
12... h6 {[%clk 0:02:36.8]} 13. Bh4 {[%clk 0:01:42.1]} 13... Rc8 {[%clk
0:02:37.6]} 14. b4 {[%clk 0:01:42.2]} 14... Qe8 {[%clk 0:02:31.4]} 15. O-O
{[%clk 0:01:33.9]} 15... Qe6 {[%clk 0:02:24]} 16. Nd2 {[%clk 0:01:20.6]} 16...
g5 {[%clk 0:01:58.1]} 17. Bg3 {[%clk 0:01:21.5]} 17... c5 {[%clk 0:01:59.7]} 18.
dxc5 {[%clk 0:01:19.1]} 18... bxc5 {[%clk 0:02:00.6]} 19. bxc5 {[%clk
0:01:12.6]} 19... Nxc5 {[%clk 0:02:01.1]} 20. Bb1 {[%clk 0:01:09.5]} 20... Ba6
{[%clk 0:01:47.7]} 21. Nf3 {[%clk 0:00:47.8]} 21... Bxf1 {[%clk 0:01:38.2]} 22.
Nd4 {[%clk 0:00:47.2]} 22... Qa6 {[%clk 0:01:22.5]} 23. Rxf1 {[%clk 0:00:36.7]}
23... Nce4 {[%clk 0:01:19.1]} 24. Qb2 {[%clk 0:00:24.5]} 24... Qb6 {[%clk
0:01:13.4]} 25. Qa1 {[%clk 0:00:21.4]} 25... Nd2 {[%clk 0:00:42.6]} 26. Nf5
{[%clk 0:00:17.9]} 26... Nxf1 {[%clk 0:00:36.9]} 27. Bd6 {[%clk 0:00:10.2]}
27... Rc1 {[%clk 0:00:20.7]} 28. Nxh6+ {[%clk 0:00:11.5]} 28... Kg7 {[%clk
0:00:20.8]} 29. Nf5+ {[%clk 0:00:13]} 29... Kh7 {[%clk 0:00:18.7]} 30. h4 {[%clk
0:00:07]} 30... Qxb1 {[%clk 0:00:18.6]} 31. Qxf6 {[%clk 0:00:07.7]} 31... Nxe3+
{[%clk 0:00:18.6]} 32. Kh2 {[%clk 0:00:08.9]} 32... Ng4+ {[%clk 0:00:20]} 33.
Kg3 {[%clk 0:00:10.4]} 33... Nxf6 {[%clk 0:00:21.1]} 34. hxg5 {[%clk 0:00:11.6]}
34... Qxf5 {[%clk 0:00:21.4]} 35. gxf6 {[%clk 0:00:12.6]} 35... Rg8+ {[%clk
0:00:22.6]} 0-1

[Event "*** Titled Tuesday Blitz"]
[Site "Chess.com"]
[Date "2018.11.06"]
[Round "1"]
[White "tomozupan"]
[Black "GianmarcoVaR"]
[Result "1-0"]
[WhiteElo "2162"]
[BlackElo "2487"]
[TimeControl "180+2"]
[EndTime "13:08:00 PST"]
[Termination "tomozupan won by checkmate"]

1. d4 {[%clk 0:02:59.9]} 1... Nf6 {[%clk 0:02:53.5]} 2. Bg5 {[%clk 0:02:59.4]}
2... Ne4 {[%clk 0:02:54]} 3. Bf4 {[%clk 0:02:59.4]} 3... d5 {[%clk 0:02:53.1]}
4. f3 {[%clk 0:02:59.5]} 4... Nf6 {[%clk 0:02:53.6]} 5. e4 {[%clk 0:02:59.7]}
5... dxe4 {[%clk 0:02:53.9]} 6. Nc3 {[%clk 0:03:00.6]} 6... exf3 {[%clk
0:02:51.6]} 7. Nxf3 {[%clk 0:03:01.1]} 7... Bg4 {[%clk 0:02:50.3]} 8. h3 {[%clk
0:02:57.2]} 8... Bxf3 {[%clk 0:02:50]} 9. Qxf3 {[%clk 0:02:57.4]} 9... c6 {[%clk
0:02:51.2]} 10. O-O-O {[%clk 0:02:53.4]} 10... e6 {[%clk 0:02:52.1]} 11. g4
{[%clk 0:02:46]} 11... Qa5 {[%clk 0:02:37.1]} 12. Kb1 {[%clk 0:02:40.5]} 12...
Nbd7 {[%clk 0:02:33.9]} 13. g5 {[%clk 0:02:32.4]} 13... Nd5 {[%clk 0:02:34.4]}
14. Ne4 {[%clk 0:02:23.8]} 14... Nxf4 {[%clk 0:01:38.2]} 15. Qxf4 {[%clk
0:02:23.7]} 15... Be7 {[%clk 0:01:29.2]} 16. Bd3 {[%clk 0:02:13.8]} 16... e5
{[%clk 0:01:10.7]} 17. Qf5 {[%clk 0:01:44.7]} 17... g6 {[%clk 0:01:10.4]} 18.
Qg4 {[%clk 0:01:45]} 18... exd4 {[%clk 0:01:10.4]} 19. Rhe1 {[%clk 0:01:09]}
19... Ne5 {[%clk 0:01:09]} 20. Nf6+ {[%clk 0:00:59]} 20... Bxf6 {[%clk
0:01:05.6]} 21. gxf6 {[%clk 0:00:59.5]} 21... O-O {[%clk 0:00:20.9]} 22. Qg5
{[%clk 0:00:52.5]} 22... Kh8 {[%clk 0:00:08.4]} 23. Rxe5 {[%clk 0:00:48.3]}
23... Qd8 {[%clk 0:00:07]} 24. Re7 {[%clk 0:00:48.3]} 24... Qd6 {[%clk 0:00:08]}
25. Rf1 {[%clk 0:00:43.3]} 25... Qd5 {[%clk 0:00:04.1]} 26. Qh6 {[%clk
0:00:37.3]} 26... Rg8 {[%clk 0:00:05.3]} 27. a3 {[%clk 0:00:23.3]} 27... c5
{[%clk 0:00:04.8]} 28. Rf4 {[%clk 0:00:22.7]} 28... Raf8 {[%clk 0:00:03.7]} 29.
Rh4 {[%clk 0:00:20.2]} 29... Qh1+ {[%clk 0:00:02.6]} 30. Ka2 {[%clk 0:00:20.1]}
30... Qd5+ {[%clk 0:00:03.8]} 31. b3 {[%clk 0:00:20.7]} 31... Qh5 {[%clk
0:00:04]} 32. Rxh5 {[%clk 0:00:21.2]} 32... gxh5 {[%clk 0:00:04.8]} 33. Qxh7#
{[%clk 0:00:22]} 1-0

[Event "*** Titled Tuesday Blitz"]
[Site "Chess.com"]
[Date "2018.11.06"]
[Round "1"]
[White "Makalexa"]
[Black "MatyChess1"]
[Result "0-1"]
[WhiteElo "2120"]
[BlackElo "2516"]
[TimeControl "180+2"]
[EndTime "13:08:05 PST"]
[Termination "MatyChess1 won by checkmate"]

1. e4 {[%clk 0:02:59.9]} 1... c5 {[%clk 0:02:59.4]} 2. Nf3 {[%clk 0:03:00.3]}
2... Nc6 {[%clk 0:02:59.7]} 3. d4 {[%clk 0:03:01.5]} 3... cxd4 {[%clk
0:03:00.9]} 4. Nxd4 {[%clk 0:03:02.6]} 4... Nf6 {[%clk 0:03:02.3]} 5. Nc3 {[%clk
0:03:02.1]} 5... e5 {[%clk 0:03:03.1]} 6. Ndb5 {[%clk 0:03:01.7]} 6... d6 {[%clk
0:03:04.2]} 7. Bg5 {[%clk 0:03:01.3]} 7... a6 {[%clk 0:03:05.6]} 8. Na3 {[%clk
0:03:02]} 8... b5 {[%clk 0:03:07.5]} 9. Nd5 {[%clk 0:03:01.9]} 9... Be7 {[%clk
0:03:08.9]} 10. Bxf6 {[%clk 0:03:03]} 10... Bxf6 {[%clk 0:03:10.7]} 11. c4
{[%clk 0:03:03.4]} 11... b4 {[%clk 0:03:11.4]} 12. Nc2 {[%clk 0:03:04.8]} 12...
O-O {[%clk 0:03:12.8]} 13. Qf3 {[%clk 0:03:00.2]} 13... Be6 {[%clk 0:03:02.6]}
14. Rd1 {[%clk 0:02:58.8]} 14... Bxd5 {[%clk 0:02:44.3]} 15. cxd5 {[%clk
0:02:57.3]} 15... Nd4 {[%clk 0:02:46.2]} 16. Nxd4 {[%clk 0:02:56.6]} 16... exd4
{[%clk 0:02:48.1]} 17. Bc4 {[%clk 0:02:49.1]} 17... d3 {[%clk 0:02:39.4]} 18.
O-O {[%clk 0:02:46.4]} 18... Bxb2 {[%clk 0:02:38.1]} 19. Rxd3 {[%clk 0:02:44.2]}
19... Qb6 {[%clk 0:02:23.9]} 20. Qh5 {[%clk 0:02:34]} 20... g6 {[%clk
0:01:56.3]} 21. Qh4 {[%clk 0:02:30.3]} 21... Bg7 {[%clk 0:01:54.5]} 22. Rh3
{[%clk 0:02:29]} 22... h6 {[%clk 0:01:55.5]} 23. Kh1 {[%clk 0:02:24.2]} 23...
Rac8 {[%clk 0:01:54.3]} 24. Bb3 {[%clk 0:02:14.4]} 24... Rc3 {[%clk 0:01:48]}
25. f4 {[%clk 0:02:10.2]} 25... Qd4 {[%clk 0:01:38.5]} 26. Re1 {[%clk
0:01:53.9]} 26... Rfc8 {[%clk 0:01:28.2]} 27. e5 {[%clk 0:01:49.2]} 27... Rxh3
{[%clk 0:01:01.6]} 28. Qxh3 {[%clk 0:01:49.1]} 28... Rc3 {[%clk 0:00:59.7]} 29.
Qd7 {[%clk 0:01:40.7]} 29... Qxf4 {[%clk 0:00:33.9]} 30. e6 {[%clk 0:01:33.6]}
30... Be5 {[%clk 0:00:32.1]} 31. exf7+ {[%clk 0:01:30.4]} 31... Qxf7 {[%clk
0:00:32.7]} 32. Qd8+ {[%clk 0:01:04]} 32... Kg7 {[%clk 0:00:31.4]} 33. h3 {[%clk
0:00:51.5]} 33... Rxh3+ {[%clk 0:00:13.4]} 34. gxh3 {[%clk 0:00:42.1]} 34...
Qf3+ {[%clk 0:00:14.8]} 35. Kg1 {[%clk 0:00:43.1]} 35... Bd4+ {[%clk 0:00:15.1]}
36. Kh2 {[%clk 0:00:44]} 36... Qf2+ {[%clk 0:00:14.1]} 37. Kh1 {[%clk
0:00:44.9]} 37... Qxe1+ {[%clk 0:00:15.3]} 38. Kg2 {[%clk 0:00:38]} 38... Qf2+
{[%clk 0:00:15.9]} 39. Kh1 {[%clk 0:00:39]} 39... Qg1# {[%clk 0:00:17.8]} 0-1

[Event "*** Titled Tuesday Blitz"]
[Site "Chess.com"]
[Date "2018.11.06"]
[Round "1"]
[White "ZuchBolt"]
[Black "Gareth-Bale11"]
[Result "0-1"]
[WhiteElo "2264"]
[BlackElo "2605"]
[TimeControl "180+2"]
[EndTime "13:08:10 PST"]
[Termination "Gareth-Bale11 won by resignation"]

1. d4 {[%clk 0:03:00.5]} 1... f6 {[%clk 0:02:59.9]} 2. e4 {[%clk 0:02:59.8]}
2... e6 {[%clk 0:02:59.6]} 3. Nc3 {[%clk 0:02:59.9]} 3... Bb4 {[%clk 0:02:51.7]}
4. f4 {[%clk 0:02:56.7]} 4... Ne7 {[%clk 0:02:51.6]} 5. Nf3 {[%clk 0:02:57.1]}
5... d5 {[%clk 0:02:52.2]} 6. e5 {[%clk 0:02:47.6]} 6... f5 {[%clk 0:02:52]} 7.
Bd2 {[%clk 0:02:44.2]} 7... O-O {[%clk 0:02:52.2]} 8. Bd3 {[%clk 0:02:42.8]}
8... c5 {[%clk 0:02:51.4]} 9. Nb5 {[%clk 0:02:35.3]} 9... Bxd2+ {[%clk
0:02:30.3]} 10. Qxd2 {[%clk 0:02:34.8]} 10... c4 {[%clk 0:02:31.8]} 11. Be2
{[%clk 0:02:35.3]} 11... Bd7 {[%clk 0:02:32.2]} 12. Nd6 {[%clk 0:02:35.7]} 12...
Qc7 {[%clk 0:02:28]} 13. c3 {[%clk 0:02:32.9]} 13... Nbc6 {[%clk 0:02:27]} 14.
O-O {[%clk 0:02:31.7]} 14... a6 {[%clk 0:02:22.7]} 15. Kh1 {[%clk 0:02:31]}
15... Nc8 {[%clk 0:02:22.5]} 16. Nxc8 {[%clk 0:02:30.8]} 16... Raxc8 {[%clk
0:02:24.4]} 17. Rg1 {[%clk 0:02:30.5]} 17... Ne7 {[%clk 0:02:22.7]} 18. g4
{[%clk 0:02:21.3]} 18... fxg4 {[%clk 0:02:22.6]} 19. Rxg4 {[%clk 0:02:22.9]}
19... Nf5 {[%clk 0:02:21.5]} 20. Rag1 {[%clk 0:02:20.7]} 20... Be8 {[%clk
0:02:19.8]} 21. Ng5 {[%clk 0:02:17.6]} 21... Qe7 {[%clk 0:02:18.3]} 22. R4g2
{[%clk 0:02:03]} 22... h6 {[%clk 0:02:13.7]} 23. Nf3 {[%clk 0:01:59]} 23... Bh5
{[%clk 0:02:13.5]} 24. Ne1 {[%clk 0:01:31.7]} 24... Bxe2 {[%clk 0:02:08.9]} 25.
Qxe2 {[%clk 0:01:33.6]} 25... Rf7 {[%clk 0:02:02.6]} 26. Nc2 {[%clk 0:01:34.1]}
26... Rcf8 {[%clk 0:01:51]} 27. Rg4 {[%clk 0:01:09.5]} 27... Kh7 {[%clk
0:01:39.8]} 28. Ne3 {[%clk 0:01:08.7]} 28... Nh4 {[%clk 0:01:07.3]} 29. Qf2
{[%clk 0:01:01.3]} 29... g5 {[%clk 0:01:05.7]} 30. Qc2+ {[%clk 0:00:47.7]} 30...
Kh8 {[%clk 0:00:57.3]} 31. fxg5 {[%clk 0:00:46.4]} 31... Rf2 {[%clk 0:00:57.7]}
32. Qb1 {[%clk 0:00:29]} 32... Nf3 {[%clk 0:00:50.9]} 33. R1g2 {[%clk
0:00:21.3]} 33... Nxg5 {[%clk 0:00:42.4]} 34. Qg6 {[%clk 0:00:19.3]} 34... Qh7
{[%clk 0:00:36.5]} 35. Qxh7+ {[%clk 0:00:20]} 35... Kxh7 {[%clk 0:00:38.4]} 36.
h4 {[%clk 0:00:20.8]} 36... Rxg2 {[%clk 0:00:37.5]} 37. Rxg2 {[%clk 0:00:21.5]}
37... Ne4 {[%clk 0:00:36.8]} 38. Ng4 {[%clk 0:00:22.4]} 38... Rf4 {[%clk
0:00:36.9]} 39. h5 {[%clk 0:00:23.1]} 39... Rxg4 {[%clk 0:00:37]} 40. Rxg4
{[%clk 0:00:23.9]} 40... Nf2+ {[%clk 0:00:36.9]} 41. Kg2 {[%clk 0:00:25.8]}
41... Nxg4 {[%clk 0:00:38.8]} 42. Kf3 {[%clk 0:00:27.3]} 0-1